[Event "*** Titled Tuesday Blitz"]
[Site "Chess.com"]
[Date "2020.11.10"]
[Round "11"]
[White "stepanosinovsky"]
[Black "juli2512"]
[Result "0-1"]
[WhiteElo "2339"]
[BlackElo "2120"]
[TimeControl "180+1"]
[EndTime "12:13:26 PST"]
[Termination "juli2512 won on time"]

1. e4 {[%clk 0:03:00.9]} 1... c5 {[%clk 0:02:57.5]} 2. Nf3 {[%clk 0:03:00.6]}
2... d6 {[%clk 0:02:57.3]} 3. d4 {[%clk 0:03:01.2]} 3... cxd4 {[%clk 0:02:57.5]}
4. Nxd4 {[%clk 0:03:02.1]} 4... Nf6 {[%clk 0:02:57.7]} 5. Nc3 {[%clk 0:03:02.8]}
5... Nc6 {[%clk 0:02:58]} 6. Be3 {[%clk 0:03:02.9]} 6... e5 {[%clk 0:02:57.6]}
7. Nb3 {[%clk 0:03:02.2]} 7... Be7 {[%clk 0:02:56.9]} 8. Qd2 {[%clk 0:03:02.2]}
8... O-O {[%clk 0:02:55.9]} 9. O-O-O {[%clk 0:03:02.6]} 9... Be6 {[%clk
0:02:56.2]} 10. Kb1 {[%clk 0:03:02.4]} 10... Ng4 {[%clk 0:02:53]} 11. f4 {[%clk
0:02:53.1]} 11... Nxe3 {[%clk 0:02:51.7]} 12. Qxe3 {[%clk 0:02:54]} 12... exf4
{[%clk 0:02:52]} 13. Qxf4 {[%clk 0:02:54.4]} 13... Ne5 {[%clk 0:02:49.9]} 14.
Nd4 {[%clk 0:02:51.6]} 14... Bg5 {[%clk 0:02:45.4]} 15. Qg3 {[%clk 0:02:38]}
15... Bh4 {[%clk 0:02:45]} 16. Qf4 {[%clk 0:02:34]} 16... Bg5 {[%clk 0:02:44.4]}
17. Qg3 {[%clk 0:02:14.4]} 17... Bh4 {[%clk 0:02:42.6]} 18. Nxe6 {[%clk
0:02:13.3]} 18... fxe6 {[%clk 0:02:31.3]} 19. Qh3 {[%clk 0:02:13.4]} 19... Qe7
{[%clk 0:02:21.3]} 20. Ne2 {[%clk 0:02:00.2]} 20... Bf6 {[%clk 0:02:10.3]} 21.
Nd4 {[%clk 0:01:51.3]} 21... Rae8 {[%clk 0:01:59.5]} 22. Bb5 {[%clk 0:01:51.3]}
22... Rc8 {[%clk 0:01:42.4]} 23. Nxe6 {[%clk 0:01:43.7]} 23... Rf7 {[%clk
0:00:48.6]} 24. Ng5 {[%clk 0:01:36.8]} 24... Bxg5 {[%clk 0:00:47.7]} 25. Qxc8+
{[%clk 0:01:36.3]} 25... Rf8 {[%clk 0:00:48.1]} 26. Qh3 {[%clk 0:01:28.6]} 26...
Qc7 {[%clk 0:00:45.3]} 27. Rhf1 {[%clk 0:01:22.5]} 27... Bf6 {[%clk 0:00:44.2]}
28. Qe6+ {[%clk 0:01:12.5]} 28... Kh8 {[%clk 0:00:43.6]} 29. g4 {[%clk
0:01:10.1]} 29... Qb6 {[%clk 0:00:42.4]} 30. Qxd6 {[%clk 0:01:00]} 30... Qxd6
{[%clk 0:00:35.3]} 31. Rxd6 {[%clk 0:01:00.9]} 31... Nxg4 {[%clk 0:00:32.5]} 32.
h3 {[%clk 0:00:34.3]} 32... Ne5 {[%clk 0:00:26.9]} 33. Re6 {[%clk 0:00:34.4]}
33... Rd8 {[%clk 0:00:24.8]} 34. Re8+ {[%clk 0:00:29.8]} 34... Rxe8 {[%clk
0:00:23.5]} 35. Bxe8 {[%clk 0:00:30.7]} 35... Kg8 {[%clk 0:00:22.3]} 36. Bb5
{[%clk 0:00:27.8]} 36... Kf8 {[%clk 0:00:21.5]} 37. c3 {[%clk 0:00:27.7]} 37...
Ke7 {[%clk 0:00:20.3]} 38. Kc2 {[%clk 0:00:28.1]} 38... a6 {[%clk 0:00:19.4]}
39. Be2 {[%clk 0:00:28.1]} 39... Kd6 {[%clk 0:00:18.7]} 40. Rd1+ {[%clk
0:00:28.1]} 40... Ke7 {[%clk 0:00:18.3]} 41. a4 {[%clk 0:00:26.9]} 41... Bg5
{[%clk 0:00:15.9]} 42. Rd5 {[%clk 0:00:24.7]} 42... Bf4 {[%clk 0:00:14.8]} 43.
b4 {[%clk 0:00:21.4]} 43... g6 {[%clk 0:00:14]} 44. a5 {[%clk 0:00:21.2]} 44...
h5 {[%clk 0:00:13.2]} 45. Kb3 {[%clk 0:00:16]} 45... Kf6 {[%clk 0:00:12.3]} 46.
b5 {[%clk 0:00:01.6]} 46... axb5 {[%clk 0:00:11.5]} 47. Rxb5 {[%clk 0:00:02.5]}
47... Kg5 {[%clk 0:00:10.7]} 0-1

[Event "*** Titled Tuesday Blitz"]
[Site "Chess.com"]
[Date "2020.11.10"]
[Round "11"]
[White "vladgoncharov"]
[Black "Legendinunknown"]
[Result "0-1"]
[WhiteElo "2474"]
[BlackElo "2695"]
[TimeControl "180+1"]
[EndTime "12:13:27 PST"]
[Termination "Legendinunknown won by resignation"]

1. d4 {[%clk 0:02:49.7]} 1... d5 {[%clk 0:02:57]} 2. c4 {[%clk 0:02:48.1]} 2...
c6 {[%clk 0:02:57.1]} 3. Nf3 {[%clk 0:02:48.2]} 3... Nf6 {[%clk 0:02:57.1]} 4.
e3 {[%clk 0:02:48.5]} 4... e6 {[%clk 0:02:56]} 5. Bd3 {[%clk 0:02:48.1]} 5...
Bd6 {[%clk 0:02:54.3]} 6. O-O {[%clk 0:02:47.4]} 6... O-O {[%clk 0:02:53.1]} 7.
Nbd2 {[%clk 0:02:47.9]} 7... Nbd7 {[%clk 0:02:49.7]} 8. e4 {[%clk 0:02:46.5]}
8... dxe4 {[%clk 0:02:46.3]} 9. Nxe4 {[%clk 0:02:46.3]} 9... Nxe4 {[%clk
0:02:46.1]} 10. Bxe4 {[%clk 0:02:46.4]} 10... Nf6 {[%clk 0:02:45.8]} 11. Bc2
{[%clk 0:02:45.9]} 11... c5 {[%clk 0:02:44.9]} 12. Bg5 {[%clk 0:02:44.5]} 12...
b6 {[%clk 0:02:39.6]} 13. Qd3 {[%clk 0:02:43]} 13... g6 {[%clk 0:02:39.2]} 14.
Ne5 {[%clk 0:02:36.3]} 14... Bb7 {[%clk 0:02:35.5]} 15. Ng4 {[%clk 0:02:21.4]}
15... Be7 {[%clk 0:02:30.3]} 16. dxc5 {[%clk 0:02:21.1]} 16... Nxg4 {[%clk
0:02:27.1]} 17. Bxe7 {[%clk 0:02:02.9]} 17... Qxe7 {[%clk 0:02:24.2]} 18. cxb6
{[%clk 0:02:03]} 18... axb6 {[%clk 0:02:25.1]} 19. Qd4 {[%clk 0:02:03.2]} 19...
Nf6 {[%clk 0:02:22.2]} 20. Qxb6 {[%clk 0:02:03.1]} 20... Rfc8 {[%clk 0:02:19.2]}
21. b3 {[%clk 0:02:02.6]} 21... Ra6 {[%clk 0:02:17.4]} 22. Qe3 {[%clk
0:02:00.1]} 22... Nd5 {[%clk 0:02:13.8]} 23. Qd2 {[%clk 0:01:59]} 23... Nf6
{[%clk 0:02:11.4]} 24. Rfd1 {[%clk 0:01:55.8]} 24... Qc5 {[%clk 0:02:10.6]} 25.
Qd4 {[%clk 0:01:51.2]} 25... Qg5 {[%clk 0:02:10.2]} 26. g3 {[%clk 0:01:46.5]}
26... Ng4 {[%clk 0:02:06.3]} 27. Bd3 {[%clk 0:01:38.4]} 27... Ne5 {[%clk
0:02:02.2]} 28. Be2 {[%clk 0:01:37.9]} 28... Bf3 {[%clk 0:02:00.8]} 29. Qd2
{[%clk 0:01:33.2]} 29... Qf5 {[%clk 0:01:55.7]} 30. Qe3 {[%clk 0:01:28.2]} 30...
Rca8 {[%clk 0:01:52.9]} 31. Bxf3 {[%clk 0:01:20.8]} 31... Nxf3+ {[%clk
0:01:53.8]} 32. Kg2 {[%clk 0:01:20.9]} 32... Ne5 {[%clk 0:01:53.4]} 33. Rd2
{[%clk 0:01:18]} 33... Ng4 {[%clk 0:01:50.1]} 34. Qc3 {[%clk 0:01:12.3]} 34...
h5 {[%clk 0:01:42.7]} 35. h3 {[%clk 0:01:11.7]} 35... Nf6 {[%clk 0:01:42]} 36.
Qf3 {[%clk 0:01:07.3]} 36... Qe5 {[%clk 0:01:40.3]} 37. Rad1 {[%clk 0:01:03.5]}
37... Rxa2 {[%clk 0:01:38.4]} 38. Rd8+ {[%clk 0:00:59.3]} 38... Rxd8 {[%clk
0:01:35.3]} 39. Rxd8+ {[%clk 0:01:00.2]} 39... Kg7 {[%clk 0:01:35.2]} 40. Qf4
{[%clk 0:00:50.2]} 40... Qc5 {[%clk 0:01:30.1]} 41. Rd2 {[%clk 0:00:45.6]} 41...
Qc6+ {[%clk 0:01:28.9]} 42. f3 {[%clk 0:00:42.1]} 42... Qa6 {[%clk 0:01:27.9]}
43. g4 {[%clk 0:00:40.3]} 43... hxg4 {[%clk 0:01:26.5]} 44. hxg4 {[%clk
0:00:40.1]} 44... Qa3 {[%clk 0:01:22.7]} 45. g5 {[%clk 0:00:37.7]} 45... Nh5
{[%clk 0:01:22.3]} 46. Qd4+ {[%clk 0:00:31]} 46... Kh7 {[%clk 0:01:21.5]} 47. c5
{[%clk 0:00:26.4]} 47... Rxd2+ {[%clk 0:01:20.3]} 48. Qxd2 {[%clk 0:00:26.2]}
48... Qxc5 {[%clk 0:01:20.9]} 49. b4 {[%clk 0:00:24.4]} 49... Qd5 {[%clk
0:01:20.6]} 50. Qe3 {[%clk 0:00:20]} 50... Qc4 {[%clk 0:01:20]} 51. Qa7 {[%clk
0:00:18]} 51... Kg7 {[%clk 0:01:17.8]} 52. Qa1+ {[%clk 0:00:14.4]} 52... Kh7
{[%clk 0:01:16.8]} 53. Qa7 {[%clk 0:00:14.1]} 53... e5 {[%clk 0:01:16.7]} 54.
Qe7 {[%clk 0:00:13.7]} 54... Nf4+ {[%clk 0:01:16.2]} 55. Kg3 {[%clk 0:00:12.8]}
55... Qe6 {[%clk 0:01:06.8]} 56. Qxe6 {[%clk 0:00:07.8]} 56... Nxe6 {[%clk
0:01:07.7]} 57. b5 {[%clk 0:00:07.9]} 57... Kg7 {[%clk 0:01:06]} 58. b6 {[%clk
0:00:08]} 58... Nc5 {[%clk 0:01:06]} 59. f4 {[%clk 0:00:08.2]} 59... exf4+
{[%clk 0:01:05.1]} 60. Kxf4 {[%clk 0:00:08.2]} 60... f6 {[%clk 0:01:05.5]} 61.
Kg4 {[%clk 0:00:07.2]} 61... fxg5 {[%clk 0:01:03]} 62. Kxg5 {[%clk 0:00:07.1]}
62... Nb7 {[%clk 0:01:03.6]} 63. Kf4 {[%clk 0:00:07]} 63... Kf6 {[%clk
0:01:03.9]} 64. Kg4 {[%clk 0:00:07.3]} 64... g5 {[%clk 0:01:04.2]} 65. Kf3
{[%clk 0:00:07.3]} 65... Kf5 {[%clk 0:01:05.1]} 66. Kg3 {[%clk 0:00:07.6]} 66...
g4 {[%clk 0:01:06]} 67. Kg2 {[%clk 0:00:08.1]} 67... Kf4 {[%clk 0:01:06.9]} 68.
Kf2 {[%clk 0:00:08.4]} 68... g3+ {[%clk 0:01:07.6]} 69. Kg2 {[%clk 0:00:09]}
69... Kg4 {[%clk 0:01:08]} 70. Kg1 {[%clk 0:00:08.8]} 70... Kf3 {[%clk
0:01:08.5]} 71. Kf1 {[%clk 0:00:08.6]} 71... g2+ {[%clk 0:01:08.8]} 72. Kg1
{[%clk 0:00:08.2]} 72... Nc5 {[%clk 0:01:09.4]} 0-1

[Event "*** Titled Tuesday Blitz"]
[Site "Chess.com"]
[Date "2020.11.10"]
[Round "11"]
[White "NewBornNow"]
[Black "crazy_but_lazy"]
[Result "1-0"]
[WhiteElo "2660"]
[BlackElo "2498"]
[TimeControl "180+1"]
[EndTime "12:13:28 PST"]
[Termination "NewBornNow won by checkmate"]

1. e4 {[%clk 0:02:59]} 1... e6 {[%clk 0:02:58.4]} 2. d4 {[%clk 0:02:56.9]} 2...
d5 {[%clk 0:02:58.5]} 3. Nc3 {[%clk 0:02:57.3]} 3... Nf6 {[%clk 0:02:57.7]} 4.
e5 {[%clk 0:02:57.2]} 4... Nfd7 {[%clk 0:02:58]} 5. Nce2 {[%clk 0:02:58.1]} 5...
c5 {[%clk 0:02:57.6]} 6. c3 {[%clk 0:02:58.3]} 6... Nc6 {[%clk 0:02:47.8]} 7. f4
{[%clk 0:02:57.8]} 7... Qb6 {[%clk 0:02:38.1]} 8. Nf3 {[%clk 0:02:56.4]} 8...
cxd4 {[%clk 0:02:35.8]} 9. cxd4 {[%clk 0:02:56]} 9... Bb4+ {[%clk 0:02:36.4]}
10. Nc3 {[%clk 0:02:55.1]} 10... f6 {[%clk 0:02:33.5]} 11. Bd3 {[%clk
0:02:54.4]} 11... O-O {[%clk 0:01:26.3]} 12. a3 {[%clk 0:02:52.6]} 12... Be7
{[%clk 0:01:25.4]} 13. h4 {[%clk 0:02:49.6]} 13... Kh8 {[%clk 0:01:12.9]} 14.
Bxh7 {[%clk 0:02:47]} 14... Kxh7 {[%clk 0:00:56.7]} 15. Ng5+ {[%clk 0:02:46.1]}
15... fxg5 {[%clk 0:00:44.5]} 16. hxg5+ {[%clk 0:02:45.2]} 16... Kg8 {[%clk
0:00:45.1]} 17. g6 {[%clk 0:01:53.6]} 17... Rf5 {[%clk 0:00:44.4]} 18. g4 {[%clk
0:01:53.1]} 18... Nxd4 {[%clk 0:00:36.9]} 19. gxf5 {[%clk 0:01:49.3]} 19... Nxf5
{[%clk 0:00:35]} 20. Qh5 {[%clk 0:01:35]} 20... Bh4+ {[%clk 0:00:34.6]} 21. Kd1
{[%clk 0:01:29.3]} 21... Qd4+ {[%clk 0:00:29.1]} 22. Kc2 {[%clk 0:01:28.8]}
22... Nc5 {[%clk 0:00:29.6]} 23. Rd1 {[%clk 0:01:14.4]} 23... Qf2+ {[%clk
0:00:26.1]} 24. Rd2 {[%clk 0:01:13.6]} 24... Ne3+ {[%clk 0:00:22.3]} 25. Kb1
{[%clk 0:01:11.9]} 25... Qxf4 {[%clk 0:00:20.6]} 26. Qh7+ {[%clk 0:01:08.7]}
26... Kf8 {[%clk 0:00:21.1]} 27. Qh8+ {[%clk 0:01:08.7]} 27... Ke7 {[%clk
0:00:22]} 28. Qxg7+ {[%clk 0:01:08.8]} 28... Kd8 {[%clk 0:00:22.7]} 29. Qg8+
{[%clk 0:00:56]} 29... Kc7 {[%clk 0:00:21.5]} 30. Rxd5 {[%clk 0:00:53.3]} 30...
exd5 {[%clk 0:00:17.4]} 31. Nxd5+ {[%clk 0:00:47.5]} 31... Nxd5 {[%clk
0:00:16.6]} 32. Qg7+ {[%clk 0:00:47.5]} 32... Ne7 {[%clk 0:00:16]} 33. Bxf4
{[%clk 0:00:47.2]} 33... Bf5+ {[%clk 0:00:15.1]} 34. Ka2 {[%clk 0:00:47]} 34...
Be6+ {[%clk 0:00:14.3]} 35. b3 {[%clk 0:00:47.1]} 35... Nxb3 {[%clk 0:00:14.8]}
36. Rh1 {[%clk 0:00:43.6]} 36... Nd4+ {[%clk 0:00:11.7]} 37. Kb2 {[%clk
0:00:42.8]} 37... Nf5 {[%clk 0:00:12.2]} 38. Qh7 {[%clk 0:00:42.9]} 38... Rd8
{[%clk 0:00:11.1]} 39. Rxh4 {[%clk 0:00:40.6]} 39... Kd7 {[%clk 0:00:08.1]} 40.
Bg5 {[%clk 0:00:39.2]} 40... Re8 {[%clk 0:00:06.5]} 41. Rh1 {[%clk 0:00:36.4]}
41... Bg8 {[%clk 0:00:05]} 42. Qh5 {[%clk 0:00:34.3]} 42... Ke6 {[%clk
0:00:03.4]} 43. Rf1 {[%clk 0:00:32.5]} 43... Rc8 {[%clk 0:00:02.4]} 44. Bxe7
{[%clk 0:00:31.6]} 44... Nxe7 {[%clk 0:00:02.8]} 45. Qg4+ {[%clk 0:00:31]} 45...
Kd5 {[%clk 0:00:03.5]} 46. Rd1+ {[%clk 0:00:30.2]} 46... Kc6 {[%clk 0:00:03.8]}
47. Qd7+ {[%clk 0:00:28]} 47... Kb6 {[%clk 0:00:03.7]} 48. Qxe7 {[%clk
0:00:28.1]} 48... Bc4 {[%clk 0:00:03.8]} 49. Rd6+ {[%clk 0:00:28]} 49... Ka5
{[%clk 0:00:04.1]} 50. Qxb7 {[%clk 0:00:27.7]} 50... Rc5 {[%clk 0:00:04.2]} 51.
Qb4# {[%clk 0:00:27.2]} 1-0

[Event "*** Titled Tuesday Blitz"]
[Site "Chess.com"]
[Date "2020.11.10"]
[Round "11"]
[White "midedu"]
[Black "Blitzking642"]
[Result "0-1"]
[WhiteElo "2091"]
[BlackElo "2286"]
[TimeControl "180+1"]
[EndTime "12:13:28 PST"]
[Termination "Blitzking642 won on time"]

1. e4 {[%clk 0:03:00.9]} 1... c5 {[%clk 0:02:57.2]} 2. Nc3 {[%clk 0:03:00.2]}
2... g6 {[%clk 0:02:56.8]} 3. g3 {[%clk 0:03:00.7]} 3... Bg7 {[%clk 0:02:56.8]}
4. Bg2 {[%clk 0:03:01.3]} 4... Nc6 {[%clk 0:02:57.4]} 5. Nge2 {[%clk 0:03:01.8]}
5... e6 {[%clk 0:02:56.6]} 6. O-O {[%clk 0:03:02.2]} 6... Nge7 {[%clk
0:02:56.6]} 7. d3 {[%clk 0:03:02.4]} 7... d5 {[%clk 0:02:52]} 8. exd5 {[%clk
0:03:00.6]} 8... exd5 {[%clk 0:02:47.8]} 9. Bg5 {[%clk 0:03:01.1]} 9... d4
{[%clk 0:02:47.7]} 10. Nd5 {[%clk 0:02:55.9]} 10... O-O {[%clk 0:02:45.4]} 11.
Nf6+ {[%clk 0:02:42.4]} 11... Kh8 {[%clk 0:02:44.9]} 12. Qd2 {[%clk 0:02:41.7]}
12... h6 {[%clk 0:02:43.1]} 13. Bxh6 {[%clk 0:02:38.3]} 13... Bxf6 {[%clk
0:02:42.6]} 14. Bxf8 {[%clk 0:02:38.2]} 14... Qxf8 {[%clk 0:02:42]} 15. Qf4
{[%clk 0:02:28.3]} 15... Bg7 {[%clk 0:02:35.7]} 16. a3 {[%clk 0:02:18.6]} 16...
Be6 {[%clk 0:02:35.6]} 17. Qc7 {[%clk 0:02:11.8]} 17... Qc8 {[%clk 0:02:10.7]}
18. Qd6 {[%clk 0:02:04.7]} 18... b6 {[%clk 0:01:56]} 19. Qf4 {[%clk 0:01:56.7]}
19... Kg8 {[%clk 0:01:51.1]} 20. Qg5 {[%clk 0:01:53.9]} 20... Qd7 {[%clk
0:01:37.7]} 21. Rfe1 {[%clk 0:01:44.8]} 21... Nd5 {[%clk 0:01:27.3]} 22. Nf4
{[%clk 0:01:34.8]} 22... Nxf4 {[%clk 0:01:25.1]} 23. Qxf4 {[%clk 0:01:34.2]}
23... Bd5 {[%clk 0:01:20.8]} 24. Be4 {[%clk 0:01:16.8]} 24... Rd8 {[%clk
0:00:47.4]} 25. Re2 {[%clk 0:01:11.9]} 25... Bxe4 {[%clk 0:00:40.6]} 26. Qxe4
{[%clk 0:01:10.3]} 26... Ne5 {[%clk 0:00:37.5]} 27. Rae1 {[%clk 0:00:53.2]}
27... Qh3 {[%clk 0:00:36]} 28. Qg2 {[%clk 0:00:48.9]} 28... Qh5 {[%clk
0:00:35.8]} 29. g4 {[%clk 0:00:34.5]} 29... Nxg4 {[%clk 0:00:31.7]} 30. Re8+
{[%clk 0:00:32.3]} 30... Rxe8 {[%clk 0:00:32.1]} 31. Rxe8+ {[%clk 0:00:31.6]}
31... Bf8 {[%clk 0:00:28.7]} 32. h3 {[%clk 0:00:23.9]} 32... Nf6 {[%clk
0:00:28.6]} 33. Ra8 {[%clk 0:00:23]} 33... Kg7 {[%clk 0:00:24.8]} 34. f3 {[%clk
0:00:15.6]} 34... Bd6 {[%clk 0:00:16.3]} 35. Rxa7 {[%clk 0:00:14.5]} 35... Nd5
{[%clk 0:00:16.7]} 36. Qg4 {[%clk 0:00:12.4]} 36... Qe5 {[%clk 0:00:15.1]} 37.
f4 {[%clk 0:00:10.6]} 37... Qe3+ {[%clk 0:00:14.2]} 38. Kf1 {[%clk 0:00:09.1]}
38... Nxf4 {[%clk 0:00:11.2]} 39. h4 {[%clk 0:00:08.7]} 39... Qc1+ {[%clk
0:00:08.7]} 40. Kf2 {[%clk 0:00:07.7]} 40... Qxc2+ {[%clk 0:00:08.7]} 41. Kf3
{[%clk 0:00:08.2]} 41... Qxd3+ {[%clk 0:00:08.8]} 42. Kf2 {[%clk 0:00:07.4]}
42... Qd2+ {[%clk 0:00:08.8]} 43. Kf1 {[%clk 0:00:07.6]} 43... d3 {[%clk
0:00:06.3]} 44. Rd7 {[%clk 0:00:01.7]} 44... Be5 {[%clk 0:00:02.4]} 45. h5
{[%clk 0:00:02.1]} 45... Qc1+ {[%clk 0:00:02.3]} 46. Kf2 {[%clk 0:00:01.8]}
46... Qxb2+ {[%clk 0:00:02.8]} 47. Ke3 {[%clk 0:00:01.5]} 47... Qe2+ {[%clk
0:00:02.4]} 0-1

[Event "*** Titled Tuesday Blitz"]
[Site "Chess.com"]
[Date "2020.11.10"]
[Round "11"]
[White "Semen_Khanin"]
[Black "Chernobay_Artem"]
[Result "0-1"]
[WhiteElo "2784"]
[BlackElo "2673"]
[TimeControl "180+1"]
[EndTime "12:13:29 PST"]
[Termination "Chernobay_Artem won by checkmate"]

1. c4 {[%clk 0:03:00.9]} 1... c5 {[%clk 0:03:00.7]} 2. Nc3 {[%clk 0:03:01.2]}
2... Nc6 {[%clk 0:03:00.1]} 3. g3 {[%clk 0:03:01.3]} 3... g6 {[%clk 0:03:00.1]}
4. Bg2 {[%clk 0:03:01.7]} 4... Bg7 {[%clk 0:03:00.8]} 5. Nf3 {[%clk 0:03:01.9]}
5... e5 {[%clk 0:02:59.8]} 6. O-O {[%clk 0:03:02]} 6... Nge7 {[%clk 0:02:59.3]}
7. d3 {[%clk 0:03:02.2]} 7... O-O {[%clk 0:02:58.7]} 8. Rb1 {[%clk 0:03:02.7]}
8... d6 {[%clk 0:02:51.2]} 9. a3 {[%clk 0:03:02.8]} 9... a5 {[%clk 0:02:50.8]}
10. Bd2 {[%clk 0:02:59.8]} 10... Rb8 {[%clk 0:02:43.9]} 11. Ne1 {[%clk
0:02:59.9]} 11... Be6 {[%clk 0:02:42.9]} 12. Nc2 {[%clk 0:03:00.6]} 12... d5
{[%clk 0:02:41.2]} 13. cxd5 {[%clk 0:02:59.1]} 13... Nxd5 {[%clk 0:02:41.1]} 14.
b4 {[%clk 0:02:47.7]} 14... cxb4 {[%clk 0:02:04.1]} 15. Nxd5 {[%clk 0:02:47.7]}
15... Bxd5 {[%clk 0:02:04]} 16. axb4 {[%clk 0:02:48.1]} 16... Bxg2 {[%clk
0:02:03.7]} 17. Kxg2 {[%clk 0:02:48.4]} 17... Qd5+ {[%clk 0:02:04.3]} 18. Kg1
{[%clk 0:02:48.7]} 18... a4 {[%clk 0:01:57.2]} 19. b5 {[%clk 0:02:48.7]} 19...
Nd4 {[%clk 0:01:56.7]} 20. Nxd4 {[%clk 0:02:47.5]} 20... exd4 {[%clk 0:01:48.7]}
21. Qxa4 {[%clk 0:02:47.5]} 21... Rfe8 {[%clk 0:01:48.6]} 22. Rfe1 {[%clk
0:02:45.1]} 22... Ra8 {[%clk 0:01:46.1]} 23. Qb4 {[%clk 0:02:18.9]} 23... Ra2
{[%clk 0:01:42.5]} 24. Rbd1 {[%clk 0:01:51.2]} 24... h5 {[%clk 0:01:35.2]} 25.
h4 {[%clk 0:01:49.6]} 25... Bf8 {[%clk 0:01:25.9]} 26. Qb1 {[%clk 0:01:46.4]}
26... Ba3 {[%clk 0:01:21.5]} 27. e4 {[%clk 0:01:31]} 27... dxe3 {[%clk
0:01:16.1]} 28. Bxe3 {[%clk 0:01:25.4]} 28... Rb2 {[%clk 0:00:52.1]} 29. Qa1
{[%clk 0:01:24.9]} 29... Qb3 {[%clk 0:00:41.3]} 30. Bd4 {[%clk 0:01:23.5]} 30...
Rbe2 {[%clk 0:00:40.8]} 31. Rxe2 {[%clk 0:00:46.6]} 31... Rxe2 {[%clk
0:00:41.7]} 32. Qb1 {[%clk 0:00:46.9]} 32... Qd5 {[%clk 0:00:37.5]} 33. Be3
{[%clk 0:00:42.6]} 33... Rxe3 {[%clk 0:00:28.2]} 34. fxe3 {[%clk 0:00:41.4]}
34... Qf3 {[%clk 0:00:28.5]} 35. Qc2 {[%clk 0:00:37.5]} 35... Qxg3+ {[%clk
0:00:28.5]} 36. Qg2 {[%clk 0:00:31.1]} 36... Qxe3+ {[%clk 0:00:29]} 37. Qf2
{[%clk 0:00:30.3]} 37... Qe6 {[%clk 0:00:27.9]} 38. Qf3 {[%clk 0:00:24.4]} 38...
b6 {[%clk 0:00:22.2]} 39. Kg2 {[%clk 0:00:23.3]} 39... Be7 {[%clk 0:00:18.7]}
40. Qe4 {[%clk 0:00:20.2]} 40... Qa2+ {[%clk 0:00:17.9]} 41. Kf3 {[%clk
0:00:12.6]} 41... Bd6 {[%clk 0:00:18.3]} 42. Qe2 {[%clk 0:00:06.4]} 42... Qd5+
{[%clk 0:00:18.3]} 43. Qe4 {[%clk 0:00:06.8]} 43... Qxb5 {[%clk 0:00:18.4]} 44.
Rc1 {[%clk 0:00:05.6]} 44... Qb2 {[%clk 0:00:17.7]} 45. Rc8+ {[%clk 0:00:05.5]}
45... Kg7 {[%clk 0:00:17.7]} 46. Qd5 {[%clk 0:00:05.2]} 46... Qf6+ {[%clk
0:00:16.8]} 47. Ke2 {[%clk 0:00:05.4]} 47... Qb2+ {[%clk 0:00:12.7]} 48. Kf3
{[%clk 0:00:05.2]} 48... Bc5 {[%clk 0:00:13]} 49. Rc7 {[%clk 0:00:04.3]} 49...
Qf2+ {[%clk 0:00:12.8]} 50. Ke4 {[%clk 0:00:04.4]} 50... Qe3# {[%clk 0:00:13.4]}
0-1

[Event "*** Titled Tuesday Blitz"]
[Site "Chess.com"]
[Date "2020.11.10"]
[Round "11"]
[White "QuintilianoR"]
[Black "chenxiaoyuer"]
[Result "0-1"]
[WhiteElo "2671"]
[BlackElo "2554"]
[TimeControl "180+1"]
[EndTime "12:13:29 PST"]
[Termination "chenxiaoyuer won on time"]

1. Nf3 {[%clk 0:03:00.9]} 1... Nf6 {[%clk 0:02:59.1]} 2. c4 {[%clk 0:03:00.5]}
2... g6 {[%clk 0:02:59.1]} 3. Nc3 {[%clk 0:03:00.5]} 3... Bg7 {[%clk 0:02:59.1]}
4. d4 {[%clk 0:03:00.4]} 4... d6 {[%clk 0:02:59.6]} 5. e4 {[%clk 0:02:59.7]}
5... O-O {[%clk 0:02:59.9]} 6. Be2 {[%clk 0:02:59.7]} 6... e5 {[%clk 0:02:57.8]}
7. O-O {[%clk 0:02:59.5]} 7... Nc6 {[%clk 0:02:57.1]} 8. d5 {[%clk 0:02:59.2]}
8... Ne7 {[%clk 0:02:57.5]} 9. b4 {[%clk 0:02:59.6]} 9... a5 {[%clk 0:02:56.5]}
10. Ba3 {[%clk 0:02:59.4]} 10... axb4 {[%clk 0:02:54.9]} 11. Bxb4 {[%clk
0:03:00.3]} 11... b6 {[%clk 0:02:55.2]} 12. a4 {[%clk 0:02:59.5]} 12... Re8
{[%clk 0:02:55]} 13. Re1 {[%clk 0:02:57.2]} 13... Bf8 {[%clk 0:02:54.3]} 14. Bf1
{[%clk 0:02:42.8]} 14... c5 {[%clk 0:02:53.4]} 15. Ba3 {[%clk 0:02:42.5]} 15...
Bg7 {[%clk 0:02:49.4]} 16. Nb5 {[%clk 0:02:37.9]} 16... Rf8 {[%clk 0:02:48.7]}
17. Bb2 {[%clk 0:02:36.4]} 17... Ne8 {[%clk 0:02:47.7]} 18. Bc3 {[%clk
0:02:16.9]} 18... f5 {[%clk 0:02:45.7]} 19. a5 {[%clk 0:01:59.4]} 19... fxe4
{[%clk 0:02:28.9]} 20. Nd2 {[%clk 0:01:58.7]} 20... bxa5 {[%clk 0:02:13.9]} 21.
Nxe4 {[%clk 0:01:49.8]} 21... Nf5 {[%clk 0:02:12.5]} 22. Qa4 {[%clk 0:01:43.5]}
22... Nd4 {[%clk 0:01:56.4]} 23. Bxa5 {[%clk 0:01:16.2]} 23... Qe7 {[%clk
0:01:28.4]} 24. Nbc3 {[%clk 0:01:01.9]} 24... Bd7 {[%clk 0:01:05.4]} 25. Qd1
{[%clk 0:00:59.4]} 25... Bh6 {[%clk 0:00:54.3]} 26. Ra2 {[%clk 0:00:54.9]} 26...
Nf6 {[%clk 0:00:41.9]} 27. Nxf6+ {[%clk 0:00:48.4]} 27... Rxf6 {[%clk
0:00:39.9]} 28. Ne4 {[%clk 0:00:48.3]} 28... Rf7 {[%clk 0:00:33.2]} 29. Ra1
{[%clk 0:00:32.4]} 29... Bf5 {[%clk 0:00:28.8]} 30. Bc3 {[%clk 0:00:32]} 30...
Raf8 {[%clk 0:00:26.4]} 31. Ra2 {[%clk 0:00:30.9]} 31... Qh4 {[%clk 0:00:16.3]}
32. Ng3 {[%clk 0:00:15.6]} 32... Bf4 {[%clk 0:00:13.1]} 33. Bd2 {[%clk
0:00:15.6]} 33... Bg4 {[%clk 0:00:08.5]} 34. Qc1 {[%clk 0:00:12.5]} 34... Bxd2
{[%clk 0:00:07.6]} 35. Qxd2 {[%clk 0:00:11.7]} 35... Rxf2 {[%clk 0:00:06.5]} 36.
Qxf2 {[%clk 0:00:11.9]} 36... Rxf2 {[%clk 0:00:07.4]} 37. Rxf2 {[%clk
0:00:12.3]} 37... Qe7 {[%clk 0:00:05.2]} 38. Ne4 {[%clk 0:00:12.1]} 38... Bf5
{[%clk 0:00:05.2]} 39. Ng3 {[%clk 0:00:12]} 39... Qb7 {[%clk 0:00:05.1]} 40. h3
{[%clk 0:00:11.7]} 40... Qb3 {[%clk 0:00:04.8]} 41. Ne4 {[%clk 0:00:09.9]} 41...
Bxe4 {[%clk 0:00:04.5]} 42. Rxe4 {[%clk 0:00:09.6]} 42... Kg7 {[%clk 0:00:05.4]}
43. Re1 {[%clk 0:00:08.8]} 43... Qc3 {[%clk 0:00:05.4]} 44. Rb1 {[%clk
0:00:08.4]} 44... Qe3 {[%clk 0:00:05.4]} 45. Rb7+ {[%clk 0:00:08.1]} 45... Kh6
{[%clk 0:00:05.7]} 46. Rf7 {[%clk 0:00:08]} 46... Nf5 {[%clk 0:00:04.6]} 47. Be2
{[%clk 0:00:07.1]} 47... Ng3 {[%clk 0:00:04.5]} 48. Bf1 {[%clk 0:00:06.8]} 48...
Ne4 {[%clk 0:00:04.5]} 49. Rf3 {[%clk 0:00:06.3]} 49... Qd4 {[%clk 0:00:04.8]}
0-1